fUST/lending_fUST_20241113
["ID","MTS","AMOUNT","RATE_DAILY","PERIOD"]
[342149326,1731509451093,-1083.392158,0.000214,2]
[342149327,1731509451102,-154.806516,0.00021403,2]
[342149328,1731509451112,-541.822806,0.00021403,2]
[342149329,1731509451121,-371.333769,0.00021403,2]
[342149330,1731509451130,-1000.23005291,0.00021435,2]
[342149331,1731509451140,-48477.19294426,0.000215,2]
[342149332,1731509451247,-18399.81933623,0.000215,2]
[342149333,1731509451259,-73869.94842085,0.000215,2]
[342149334,1731509451271,-604953.57590917,0.000215,2]
[342149335,1731509451281,-151.0,0.000215,2]
[342149336,1731509451290,-151.0,0.000215,2]
[342149337,1731509451299,-151.0,0.000215,2]
[342149338,1731509451309,-542.520203,0.000215,2]
[342149339,1731509451318,-542.520203,0.000215,2]
[342149340,1731509451327,-1045.11368554,0.000215,2]
[342149341,1731509451336,-795.503535,0.000215,2]
[342149342,1731509451346,-795.503535,0.000215,2]
[342149343,1731509451355,-152.538338,0.000215,2]
[342149344,1731509451364,-151.0,0.000215,2]
[342149345,1731509451374,-892.283689,0.000215,2]
[342149346,1731509451383,-151.0,0.000215,2]
[342149347,1731509451392,-892.283689,0.000215,2]
[342149348,1731509451401,-266.477268,0.000215,2]
[342149349,1731509451411,-266.477268,0.000215,2]
[342149350,1731509451420,-151.0,0.000215,2]
[342149351,1731509451430,-151.0,0.000215,2]
[342149352,1731509451538,-151.0,0.000215,2]
[342149353,1731509451549,-151.0,0.000215,2]
[342149354,1731509451558,-894.562796,0.000215,2]
[342149355,1731509451568,-205.055236,0.000215,2]
[342149356,1731509451578,-894.562796,0.000215,2]
[342149357,1731509451587,-151.0,0.000215,2]
[342149358,1731509451599,-151.0,0.000215,2]
[342149359,1731509451610,-151.0,0.000215,2]
[342149360,1731509451619,-151.0,0.000215,2]
[342149361,1731509451628,-151.0,0.000215,2]
[342149362,1731509451639,-246.238447,0.000215,2]
[342149363,1731509451649,-246.238447,0.000215,2]
[342149364,1731509451658,-434.934597,0.000215,2]
[342149365,1731509451668,-434.934597,0.000215,2]
[342149366,1731509451677,-2077.90945,0.000215,2]
[342149367,1731509451687,-2077.90945,0.000215,2]
[342149368,1731509451701,-1125.316537,0.000215,2]
[342149369,1731509451710,-1125.316537,0.000215,2]
[342149370,1731509451720,-151.0,0.000215,2]
[342149371,1731509451730,-573.961789,0.000215,2]
[342149372,1731509451739,-151.0,0.000215,2]
[342149373,1731509451748,-573.961789,0.000215,2]
[342149374,1731509451758,-293.819228,0.000215,2]
[342149375,1731509451767,-151.0,0.000215,2]
[342149376,1731509451777,-151.0,0.000215,2]
[342149377,1731509451786,-359.711955,0.000215,2]
[342149378,1731509451796,-359.711955,0.000215,2]
[342149379,1731509451805,-857.938891,0.000215,2]
[342149380,1731509451815,-857.938891,0.000215,2]
[342149381,1731509451825,-1083.392158,0.000215,2]
[342149382,1731509451835,-1083.392158,0.000215,2]
[342149383,1731509451846,-151.0,0.000215,2]
[342149384,1731509451856,-325.734991,0.000215,2]
[342149385,1731509451865,-325.734991,0.000215,2]
[342149386,1731509451876,-234.243247,0.000215,2]
[342149387,1731509451885,-234.243247,0.000215,2]
[342149388,1731509451896,-282.580404,0.000215,2]
[342149389,1731509451906,-282.580404,0.000215,2]
[342149390,1731509451915,-346.612815,0.000215,2]
[342149391,1731509451925,-346.612815,0.000215,2]
[342149392,1731509451935,-341.0,0.00021526,2]
[342149393,1731509451948,-185.666884,0.00021577,2]
[342149394,1731509451958,-185.666884,0.00021577,2]
[342149395,1731509451967,-500.0,0.00021602,2]
[342149396,1731509451978,-500.0,0.00021602,2]
[342149397,1731509451988,-556.82,0.00021602,2]
[342149398,1731509451997,-500.0,0.00021602,2]
[342149399,1731509452007,-421.6894937,0.00021602,2]
[342149400,1731509452017,-529.15,0.00021602,2]
[342149401,1731509452026,-500.0,0.00021602,2]
[342149402,1731509452035,-500.0,0.00021602,2]
[342149403,1731509452045,-500.0,0.00021643,2]
[342149404,1731509452054,-500.0,0.00021643,2]
[342149405,1731509452065,-526.0262757,0.00021643,2]
[342149406,1731509452075,-500.0,0.00021643,2]
[342149407,1731509452084,-500.0,0.00021643,2]
[342149408,1731509452094,-580.75,0.00021643,2]
[342149409,1731509452103,-758.26,0.00021643,2]
[342149410,1731509452113,-500.0,0.00021643,2]
[342149411,1731509452122,-1661.87,0.00021643,2]
[342149412,1731509452132,-1056.77,0.00021643,2]
[342149413,1731509452142,-558.29,0.00021643,2]
[342149414,1731509452152,-903.57,0.00021643,2]
[342149415,1731509452161,-500.0,0.00021643,2]
[342149416,1731509452170,-1428.26,0.00021643,2]
[342149417,1731509452180,-1380.05,0.00021643,2]
[342149418,1731509452194,-500.0,0.00021643,2]
[342149419,1731509452204,-500.0,0.00021643,2]
[342149420,1731509452214,-552.37,0.00021643,2]
[342149421,1731509452223,-767.18,0.00021643,2]
[342149422,1731509452233,-5330.68,0.00021643,2]
[342149423,1731509452243,-500.0,0.00021643,2]
[342149424,1731509452252,-387.01629,0.00021664,2]
[342149425,1731509452262,-371.333769,0.00021664,2]
[342149426,1731509452272,-387.01629,0.00021664,2]
[342149427,1731509452281,-371.333769,0.00021664,2]
[342149428,1731509452291,-154.806516,0.00021664,2]
[342149429,1731509452301,-541.822806,0.00021664,2]
[342149430,1731509452310,-371.333769,0.00021664,2]
[342149431,1731509452319,-68216.2717091,0.000218,10]
[342149432,1731509452328,-3000.0,0.000218,2]
[342149433,1731509452338,-3000.0,0.0002181,2]
[342149434,1731509452347,-3000.0,0.0002182,2]
[342149435,1731509452356,-3000.0,0.0002183,2]
[342149436,1731509452366,-3000.0,0.0002184,2]
[342149437,1731509452375,-3000.0,0.0002185,2]
[342149438,1731509452384,-3000.0,0.0002186,2]
[342149439,1731509452393,-346.612815,0.0002186,2]
[342149440,1731509452402,-346.612815,0.0002186,2]
[342149441,1731509452412,-3000.0,0.0002187,2]
[342149442,1731509452421,-151.0,0.0002187,2]
[342149443,1731509452430,-325.734991,0.0002187,2]
[342149444,1731509452443,-325.734991,0.0002187,2]
[342149445,1731509452452,-234.243247,0.0002187,2]
[342149446,1731509452461,-234.243247,0.0002187,2]
[342149447,1731509452470,-151.0,0.00021874,2]
[342149448,1731509452479,-359.711955,0.00021874,2]
[342149449,1731509452488,-359.711955,0.00021874,2]
[342149450,1731509452497,-282.580404,0.00021874,2]
[342149451,1731509452506,-282.580404,0.00021874,2]
[342149452,1731509452516,-500.0,0.00021876,2]
[342149453,1731509452525,-500.0,0.00021876,2]
[342149454,1731509452534,-556.82,0.00021876,2]
[342149455,1731509452543,-500.0,0.00021876,2]
[342149456,1731509452552,-246.238447,0.00021876,2]
[342149457,1731509452562,-246.238447,0.00021876,2]
[342149458,1731509452571,-529.15,0.00021876,2]
[342149459,1731509452581,-500.0,0.00021876,2]
[342149460,1731509452590,-500.0,0.00021876,2]
[342149461,1731509452600,-573.961789,0.00021876,2]
[342149462,1731509452610,-573.961789,0.00021876,2]
[342149463,1731509452622,-1083.392158,0.00021876,2]
[342149464,1731509452631,-1083.392158,0.00021876,2]
[342149465,1731509452640,-151.0,0.00021877,2]
[342149466,1731509452650,-151.0,0.00021877,2]
[342149467,1731509452659,-151.0,0.00021877,2]
[342149468,1731509452668,-151.0,0.00021877,2]
[342149469,1731509452677,-151.0,0.00021877,2]
[342149470,1731509452686,-151.0,0.00021877,2]
[342149471,1731509452700,-434.934597,0.00021877,2]
[342149472,1731509452709,-434.934597,0.00021877,2]
[342149473,1731509452719,-2077.90945,0.00021877,2]
[342149474,1731509452728,-2077.90945,0.00021877,2]
[342149475,1731509452737,-1125.316537,0.00021877,2]
[342149476,1731509452746,-1125.316537,0.00021877,2]
[342149477,1731509452755,-151.0,0.00021877,2]
[342149478,1731509452764,-151.0,0.00021877,2]
[342149479,1731509452774,-151.0,0.00021877,2]
[342149480,1731509452783,-857.938891,0.00021877,2]
[342149481,1731509452792,-857.938891,0.00021877,2]
[342149482,1731509452801,-151.0,0.0002188,2]
[342149483,1731509452811,-894.562796,0.0002188,2]
[342149484,1731509452820,-894.562796,0.0002188,2]
[342149485,1731509452829,-152.05821,0.0002188,2]
[342149486,1731509452838,-3000.0,0.0002188,2]
[342149487,1731509452847,-3000.0,0.0002189,2]
[342149488,1731509452856,-153.0,0.00021897,2]
[342149489,1731509452865,-1125.49,0.000219,2]
[342149490,1731509452875,-266.477268,0.000219,2]
[342149491,1731509452884,-266.477268,0.000219,2]
[342149492,1731509452892,-3000.0,0.000219,2]
[342149493,1731509452902,-151.0,0.0002191,2]
[342149494,1731509452912,-151.0,0.0002191,2]
[342149495,1731509452921,-542.520203,0.0002191,2]
[342149496,1731509452930,-542.520203,0.0002191,2]
[342149497,1731509452942,-795.503535,0.0002191,2]
[342149498,1731509452951,-795.503535,0.0002191,2]
[342149499,1731509452960,-151.0,0.0002191,2]
[342149500,1731509452970,-892.283689,0.0002191,2]
[342149501,1731509452979,-151.0,0.0002191,2]
[342149502,1731509452988,-892.283689,0.0002191,2]
[342149503,1731509452997,-3000.0,0.0002191,2]
[342149504,1731509453006,-326.10005025,0.00021917,2]
[342149505,1731509453015,-500.0,0.00021917,2]
[342149506,1731509453024,-500.0,0.00021917,2]
[342149507,1731509453033,-500.0,0.00021917,2]
[342149508,1731509453043,-500.0,0.00021917,2]
[342149509,1731509453052,-580.75,0.00021917,2]
[342149510,1731509453061,-758.26,0.00021917,2]
[342149511,1731509453070,-500.0,0.00021917,2]
[342149512,1731509453079,-1661.87,0.00021917,2]
[342149513,1731509453089,-1056.77,0.00021917,2]
[342149514,1731509453098,-903.57,0.00021917,2]
[342149515,1731509453107,-500.0,0.00021917,2]
[342149516,1731509453116,-1428.26,0.00021917,2]
[342149517,1731509453125,-1380.05,0.00021917,2]
[342149518,1731509453135,-500.0,0.00021917,2]
[342149519,1731509453144,-500.0,0.00021917,2]
[342149520,1731509453153,-552.37,0.00021917,2]
[342149521,1731509453163,-767.18,0.00021917,2]
[342149522,1731509453172,-5330.68,0.00021917,2]
[342149523,1731509453181,-500.0,0.00021917,2]
[342149524,1731509453193,-263.44917642,0.00021918,2]
[342149525,1731509453202,-3000.0,0.0002192,2]
[342149526,1731509453212,-159.6,0.0002192,7]
[342149527,1731509453221,-500.0,0.00021921,2]
[342149528,1731509453231,-501.19589405,0.00021921,2]
[342149529,1731509453241,-1000.0,0.00021921,2]
[342149530,1731509453250,-1000.0,0.00021921,2]
[342149531,1731509453259,-185.666884,0.00021925,2]
[342149532,1731509453269,-185.666884,0.00021925,2]
[342149533,1731509453278,-387.01629,0.00021925,2]
[342149534,1731509453287,-371.333769,0.00021925,2]
[342149535,1731509453297,-387.01629,0.00021925,2]
[342149536,1731509453307,-371.333769,0.00021925,2]
[342149537,1731509453316,-154.806516,0.00021925,2]
[342149538,1731509453326,-541.822806,0.00021925,2]
[342149539,1731509453335,-371.333769,0.00021925,2]
[342149540,1731509453344,-3000.0,0.0002193,2]
[342149541,1731509453354,-3000.0,0.0002194,2]
[342149542,1731509453363,-3000.0,0.0002195,2]
[342149543,1731509453373,-3000.0,0.0002196,2]
[342149544,1731509453383,-4092.756315,0.0002197,2]
[342149545,1731509453393,-541.21578315,0.00022,2]
[342149546,1731509453402,-300.0,0.00022,3]
[342149547,1731509453412,-75687.53929562,0.00022,30]
[342149548,1731509453422,-23590.52830046,0.00022,2]
[342149549,1731509453433,-158.0,0.00022,2]
[342149550,1731509453447,-573.961789,0.00022,7]
[342149551,1731509453456,-573.961789,0.00022,7]
[342149552,1731509453466,-152.367205,0.00022,7]
[342149553,1731509453475,-359.711955,0.00022,7]
[342149554,1731509453485,-359.711955,0.00022,7]
[342149555,1731509453495,-329.09867,0.00022,2]
[342149556,1731509453504,-202.0,0.00022,2]
[342149557,1731509453513,-1083.392158,0.00022,7]
[342149558,1731509453523,-1083.392158,0.00022,7]
[342149559,1731509453532,-151.0,0.00022,7]
[342149560,1731509453542,-325.734991,0.00022,7]
[342149561,1731509453552,-325.734991,0.00022,7]
[342149562,1731509453561,-234.243247,0.00022,7]
[342149563,1731509453570,-234.243247,0.00022,7]
[342149564,1731509453579,-282.580404,0.00022,7]
[342149565,1731509453588,-282.580404,0.00022,7]
[342149566,1731509453600,-346.612815,0.00022,7]
[342149567,1731509453610,-346.612815,0.00022,7]
[342149568,1731509453706,-12078.52524984,0.0002201,16]
[342149569,1731509453718,-151.0,0.0002201,7]
[342149570,1731509453728,-151.0,0.0002201,7]
[342149571,1731509453738,-151.0,0.0002201,7]
[342149572,1731509453747,-151.0,0.0002201,7]
[342149573,1731509453756,-151.0,0.0002201,7]
[342149574,1731509453766,-246.238447,0.0002201,7]
[342149575,1731509453776,-246.238447,0.0002201,7]
[342149576,1731509453785,-434.934597,0.0002201,7]
[342149577,1731509453795,-434.934597,0.0002201,7]
[342149578,1731509453804,-2077.90945,0.0002201,7]
[342149579,1731509453813,-2077.90945,0.0002201,7]
[342149580,1731509453823,-1125.316537,0.0002201,7]
[342149581,1731509453832,-1125.316537,0.0002201,7]
[342149582,1731509453841,-151.513288,0.0002201,3]
[342149583,1731509453851,-151.0,0.0002201,7]
[342149584,1731509453860,-151.0,0.0002201,7]
[342149585,1731509453869,-857.938891,0.0002201,7]
[342149586,1731509453880,-857.938891,0.0002201,7]
[342149587,1731509453889,-266.477268,0.0002215,7]
[342149588,1731509453899,-266.477268,0.0002215,7]
[342149589,1731509453908,-151.0,0.0002215,7]
[342149590,1731509453917,-894.562796,0.0002215,7]
[342149591,1731509453927,-894.562796,0.0002215,7]
[342149592,1731509453938,-509.26900493,0.0002215,2]
[342149593,1731509453951,-556.82,0.0002215,2]
[342149594,1731509453961,-272.5,0.0002215,2]
[342149595,1731509453971,-529.15,0.0002215,2]
[342149596,1731509453981,-500.0,0.0002215,2]
[342149597,1731509453991,-500.0,0.0002215,2]
[342149598,1731509454001,-500.0,0.00022191,2]
[342149599,1731509454010,-500.0,0.00022191,2]
[342149600,1731509454020,-500.0,0.00022191,2]
[342149601,1731509454032,-500.0,0.00022191,2]
[342149602,1731509454042,-580.75,0.00022191,2]
[342149603,1731509454052,-758.26,0.00022191,2]
[342149604,1731509454062,-500.0,0.00022191,2]
[342149605,1731509454072,-1661.87,0.00022191,2]
[342149606,1731509454083,-1056.77,0.00022191,2]
[342149607,1731509454092,-903.57,0.00022191,2]
[342149608,1731509454102,-500.0,0.00022191,2]
[342149609,1731509454112,-1428.26,0.00022191,2]
[342149610,1731509454122,-1380.05,0.00022191,2]
[342149611,1731509454131,-500.0,0.00022191,2]
[342149612,1731509454141,-500.0,0.00022191,2]
[342149613,1731509454150,-552.37,0.00022191,2]
[342149614,1731509454159,-767.18,0.00022191,2]
[342149615,1731509454169,-5330.68,0.00022191,2]
[342149616,1731509454178,-383.23395301,0.00022191,2]
[342149617,1731509454188,-151.0,0.00022192,7]
[342149618,1731509454203,-795.503535,0.00022192,7]
[342149619,1731509454213,-795.503535,0.00022192,7]
[342149620,1731509454222,-892.283689,0.00022192,7]
[342149621,1731509454231,-892.283689,0.00022192,7]
[342149622,1731509454249,-221.261189,0.00022248,7]
[342149623,1731509454269,-542.520203,0.00022248,7]
[342149624,1731509454289,-542.520203,0.00022248,7]
[342149625,1731509454298,-151.0,0.00022248,7]
[342149626,1731509454308,-270.045062,0.00022248,7]
[342149627,1731509454317,-802.32198374,0.00022404,2]
[342149628,1731509454327,-556.82,0.00022424,2]
[342149629,1731509454337,-529.15,0.00022424,2]
[342149630,1731509454346,-500.0,0.00022424,2]
[342149631,1731509454355,-500.0,0.00022424,2]
[342149632,1731509454365,-500.0,0.00022465,2]
[342149633,1731509454374,-500.0,0.00022465,2]
[342149634,1731509454384,-500.0,0.00022465,2]
[342149635,1731509454393,-479.0,0.00022465,2]
[342149636,1731509454403,-580.75,0.00022465,2]
[342149637,1731509454412,-758.26,0.00022465,2]
[342149638,1731509454421,-500.0,0.00022465,2]
[342149639,1731509454431,-1661.87,0.00022465,2]
[342149640,1731509454447,-1056.77,0.00022465,2]
[342149641,1731509454456,-903.57,0.00022465,2]
[342149642,1731509454468,-155.28216279,0.00022465,2]
[342149643,1731509454477,-1428.26,0.00022465,2]
[342149644,1731509454488,-1380.05,0.00022465,2]
[342149645,1731509454497,-500.0,0.00022465,2]
[342149646,1731509454506,-500.0,0.00022465,2]
[342149647,1731509454516,-552.37,0.00022465,2]
[342149648,1731509454525,-767.18,0.00022465,2]
[342149649,1731509454535,-5330.68,0.00022465,2]
[342149650,1731509454544,-205.8607419,0.0002252,2]
[342149651,1731509454554,-153.0,0.00022589,2]
[342149652,1731509454563,-153.0,0.00022589,2]
[342149653,1731509454573,-153.0,0.00022589,2]
[342149654,1731509454583,-153.0,0.00022589,2]
[342149655,1731509454592,-153.0,0.00022589,2]
[342149656,1731509454602,-153.0,0.00022589,2]
[342149657,1731509454614,-153.0,0.00022589,2]
[342149658,1731509454623,-153.0,0.00022589,2]
[342149659,1731509454632,-153.0,0.00022589,2]
[342149660,1731509454642,-153.0,0.00022589,2]
[342149661,1731509454650,-153.0,0.00022589,2]
[342149662,1731509454661,-153.0,0.00022589,2]
[342149663,1731509454670,-153.0,0.00022589,2]
[342149664,1731509454679,-153.0,0.00022589,2]
[342149665,1731509454689,-153.0,0.00022589,2]
[342149666,1731509454702,-530.0,0.00022645,2]
[342149667,1731509454713,-2391.0,0.00022645,2]
[342149668,1731509454722,-1117.0,0.00022645,2]
[342149669,1731509454732,-556.82,0.00022698,2]
[342149670,1731509454742,-529.15,0.00022698,2]
[342149671,1731509454751,-500.0,0.00022698,2]
[342149672,1731509454760,-500.0,0.00022698,2]
[342149673,1731509454769,-500.0,0.00022739,2]
[342149674,1731509454779,-500.0,0.00022739,2]
[342149675,1731509454788,-384.15,0.00022739,2]
[342149676,1731509454798,-580.75,0.00022739,2]
[342149677,1731509454807,-758.26,0.00022739,2]
[342149678,1731509454816,-500.0,0.00022739,2]
[342149679,1731509454826,-1661.87,0.00022739,2]
[342149680,1731509454837,-1056.77,0.00022739,2]
[342149681,1731509454848,-903.57,0.00022739,2]
[342149682,1731509454857,-1428.26,0.00022739,2]
[342149683,1731509454866,-1380.05,0.00022739,2]
[342149684,1731509454875,-500.0,0.00022739,2]
[342149685,1731509454884,-500.0,0.00022739,2]
[342149686,1731509454893,-552.37,0.00022739,2]
[342149687,1731509454902,-767.18,0.00022739,2]
[342149688,1731509454912,-5330.68,0.00022739,2]
[342149689,1731509454921,-242.219,0.00022822,2]
[342149690,1731509454930,-1500.0,0.00022922,2]
[342149691,1731509454941,-556.82,0.00022972,2]
[342149692,1731509454951,-529.15,0.00022972,2]
[342149693,1731509454961,-500.0,0.00022972,2]
[342149694,1731509454971,-500.0,0.00022972,2]
[342149695,1731509454980,-242.26513556,0.00023,2]
[342149696,1731509454989,-114453.87743707,0.00023,2]
[342149697,1731509454999,-205.016138,0.00023,7]
[342149698,1731509455008,-542.520203,0.00023,7]
[342149699,1731509455017,-542.520203,0.00023,7]
[342149700,1731509455027,-795.503535,0.00023,7]
[342149701,1731509455036,-795.503535,0.00023,7]
[342149702,1731509455045,-151.0,0.00023,7]
[342149703,1731509455054,-892.283689,0.00023,7]
[342149704,1731509455063,-892.283689,0.00023,7]
[342149705,1731509455072,-266.477268,0.00023,7]
[342149706,1731509455081,-266.477268,0.00023,7]
[342149707,1731509455091,-151.0,0.00023,7]
[342149708,1731509455100,-151.0,0.00023,7]
[342149709,1731509455109,-151.0,0.00023,7]
[342149710,1731509455118,-894.562796,0.00023,7]
[342149711,1731509455127,-894.562796,0.00023,7]
[342149712,1731509455136,-151.0,0.00023,7]
[342149713,1731509455146,-151.0,0.00023,7]
[342149714,1731509455155,-151.0,0.00023,7]
[342149715,1731509455165,-246.238447,0.00023,7]
[342149716,1731509455175,-246.238447,0.00023,7]
[342149717,1731509455184,-434.934597,0.00023,7]
[342149718,1731509455197,-434.934597,0.00023,7]
[342149719,1731509455206,-541.764153,0.00023,7]
[342149720,1731509455215,-2077.90945,0.00023,7]
[342149721,1731509455225,-2077.90945,0.00023,7]
[342149722,1731509455234,-1125.316537,0.00023,7]
[342149723,1731509455244,-1125.316537,0.00023,7]
[342149724,1731509455253,-573.961789,0.00023,7]
[342149725,1731509455263,-151.0,0.00023,7]
[342149726,1731509455272,-573.961789,0.00023,7]
[342149727,1731509455281,-151.0,0.00023,7]
[342149728,1731509455291,-359.711955,0.00023,7]
[342149729,1731509455300,-359.711955,0.00023,7]
[342149730,1731509455310,-857.938891,0.00023,7]
[342149731,1731509455319,-857.938891,0.00023,7]
[342149732,1731509455329,-1083.392158,0.00023,7]
[342149733,1731509455339,-1083.392158,0.00023,7]
[342149734,1731509455348,-325.734991,0.00023,7]
[342149735,1731509455357,-325.734991,0.00023,7]
[342149736,1731509455367,-234.243247,0.00023,7]
[342149737,1731509455376,-234.243247,0.00023,7]
[342149738,1731509455385,-282.580404,0.00023,7]
[342149739,1731509455395,-282.580404,0.00023,7]
[342149740,1731509455404,-346.612815,0.00023,7]
[342149741,1731509455413,-346.612815,0.00023,7]
[342149742,1731509455423,-500.0,0.00023013,2]
[342149743,1731509455432,-500.0,0.00023013,2]
[342149744,1731509455445,-580.75,0.00023013,2]
[342149745,1731509455454,-758.26,0.00023013,2]
[342149746,1731509455463,-500.0,0.00023013,2]
[342149747,1731509455473,-1661.87,0.00023013,2]
[342149748,1731509455482,-1056.77,0.00023013,2]
[342149749,1731509455492,-903.57,0.00023013,2]
[342149750,1731509455501,-1428.26,0.00023013,2]
[342149751,1731509455511,-1380.05,0.00023013,2]
[342149752,1731509455520,-500.0,0.00023013,2]
[342149753,1731509455529,-500.0,0.00023013,2]
[342149754,1731509455538,-552.37,0.00023013,2]
[342149755,1731509455547,-767.18,0.00023013,2]
[342149756,1731509455557,-5330.68,0.00023013,2]
[342149757,1731509455566,-158.0,0.00023014,2]
[342149758,1731509455575,-823.0,0.00023124,2]
[342149759,1731509455585,-556.82,0.00023246,2]
[342149760,1731509455594,-529.15,0.00023246,2]
[342149761,1731509455608,-500.0,0.00023246,2]
[342149762,1731509455618,-500.0,0.00023246,2]
[342149763,1731509455627,-156.974183,0.00023247,7]
[342149764,1731509455636,-151.0,0.00023247,7]
[342149766,1731509455646,-151.0,0.00023247,7]
[342149768,1731509455655,-156.974183,0.00023247,7]
[342149769,1731509455746,-151.0,0.00023247,7]
[342149770,1731509455757,-151.0,0.00023247,7]
[342149771,1731509455767,-253.70325,0.00023247,7]
[342149772,1731509455776,-442.783361,0.00023247,7]
[342149773,1731509455785,-442.783361,0.00023247,7]
[342149774,1731509455794,-345.68207635,0.00023262,2]
[342149775,1731509455804,-500.0,0.00023287,2]
[342149776,1731509455813,-500.0,0.00023287,2]
[342149777,1731509455822,-580.75,0.00023287,2]
[342149778,1731509455832,-758.26,0.00023287,2]
[342149779,1731509455841,-500.0,0.00023287,2]
[342149780,1731509455851,-1056.77,0.00023287,2]
[342149781,1731509455860,-1661.87,0.00023287,2]
[342149782,1731509455870,-903.57,0.00023287,2]
[342149783,1731509455879,-1428.26,0.00023287,2]
[342149784,1731509455889,-1380.05,0.00023287,2]
[342149785,1731509455899,-486.87,0.00023287,2]
[342149786,1731509455908,-641.52693389,0.00023287,2]
[342149787,1731509455917,-552.37,0.00023287,2]
[342149788,1731509455927,-767.18,0.00023287,2]
[342149789,1731509455937,-5330.68,0.00023287,2]
[342149790,1731509455949,-802.32198374,0.00023519,2]
[342149791,1731509455958,-556.82,0.0002352,2]
[342149792,1731509455967,-529.15,0.0002352,2]
[342149793,1731509455976,-500.0,0.0002352,2]
[342149794,1731509455986,-500.0,0.0002352,2]
[342149795,1731509455996,-531.32,0.00023561,2]
[342149796,1731509456006,-330.94,0.00023561,2]
[342149797,1731509456015,-580.75,0.00023561,2]
[342149798,1731509456024,-758.26,0.00023561,2]
[342149799,1731509456033,-500.0,0.00023561,2]
[342149800,1731509456043,-1056.77,0.00023561,2]
[342149801,1731509456052,-1661.87,0.00023561,2]
[342149802,1731509456061,-903.57,0.00023561,2]
[342149803,1731509456070,-1428.26,0.00023561,2]
[342149804,1731509456080,-1380.05,0.00023561,2]
[342149805,1731509456089,-552.37,0.00023561,2]
[342149806,1731509456099,-767.18,0.00023561,2]
[342149807,1731509456109,-5330.68,0.00023561,2]
[342149808,1731509456119,-403.5298767,0.00023671,2]
[342149809,1731509456128,-510.9767832,0.00023671,2]
[342149810,1731509456137,-455.6663275,0.00023671,2]
[342149811,1731509456147,-615.0,0.000237,2]
[342149812,1731509456156,-500.0,0.0002375,2]
[342149813,1731509456166,-556.82,0.00023794,2]
[342149814,1731509456175,-529.15,0.00023794,2]
[342149815,1731509456185,-359.57,0.00023794,2]
[342149816,1731509456198,-500.0,0.00023794,2]
[342149817,1731509456208,-186.0,0.000238,2]
[342149818,1731509456218,-580.75,0.00023835,2]
[342149819,1731509456227,-758.26,0.00023835,2]
[342149820,1731509456237,-415.97,0.00023835,2]
[342149821,1731509456246,-1056.77,0.00023835,2]
[342149822,1731509456257,-1661.87,0.00023835,2]
[342149823,1731509456267,-903.57,0.00023835,2]
[342149824,1731509456276,-1428.26,0.00023835,2]
[342149825,1731509456286,-1380.05,0.00023835,2]
[342149826,1731509456295,-552.37,0.00023835,2]
[342149827,1731509456305,-767.18,0.00023835,2]